Cogmind - Beta 13 @@@ ROGUE MODE // 2024.04.18 @ 17:18:24 Player: opdo Result: Self-destructed Performance ------------- Evolutions (3) 1500 Regions Visited (6) 1200 Robots Destroyed (32) 160 Value Destroyed (892) 892 Prototype IDs (2) 40 Alien Tech Used (0) 0 Bonus (0) 0 TOTAL SCORE: 3792 Bonus ------- None Cogmind --------- Core Integrity 405/700 Matter 104/300 Energy 160/160 System Corruption 6% Temperature Cool (87) Movement Core (350) Ox6 Location -7/Factory Parts ------- > --- POWER (2) -------- Light Nuclear Core > --- PROPULSION (4) --- (None) > --- UTILITY (5) ------ Medium Storage Unit Improved Sensor Array Improved Signal Interpreter Improved Terrain Scan Processor Advanced Terrain Scan Processor > --- WEAPON (2) ------- Gauss Rifle > --- INVENTORY (10) --- Advanced Weight Redist. System Structural Scanner Trap Scanner Seismic Detector Melee Analysis Suite Microactuators Microactuators Transmission Jammer System Shield Peak State ------------ > --- POWER ------------ Deuterium Engine Improved Deuterium Engine > --- PROPULSION ------- Wheel Armored Huge Wheel Gravmag System > --- UTILITY ---------- Medium Storage Unit Improved Sensor Array Improved Signal Interpreter Improved Terrain Scan Processor Advanced Terrain Scan Processor > --- WEAPON ----------- Gauss Rifle Precision Assault Rifle > --- INVENTORY -------- Light Nuclear Core Advanced Weight Redist. System Trap Scanner Seismic Detector Melee Analysis Suite Microactuators Microactuators Transmission Jammer System Shield Enhanced Autogun [Rating: 46] Favorites ----------- Power Ion Engine Engine Ion Engine Power Core Light Nuclear Core Propulsion Aluminum Leg Leg Aluminum Leg Wheel Compact Wheel Hover Unit Gravmag System Utility Small Storage Unit Device Seismic Detector Storage Small Storage Unit Processor Improved Terrain Scan Processor Weapon Scythe Energy Gun Small Laser Ballistic Gun Minigun Launcher Rocket Launcher Slashing Weapon Scythe Build | -11 -10 -10 -10 -9 -8 -7 ------- Run | Yrd Mat Min Exi Min Mat Fac Slots Evolved 6 | . . . . . 4 2 Power 1 | . . . . . . 1 Propulsion 2 | . . . . . 2 . Utility 3 | . . . . . 2 1 Weapon . | . . . . . . . Parts Attached 51 | 8 4 4 . 3 16 16 Power 10 | 1 2 1 . 1 . 5 Engine 8 | 1 2 1 . 1 . 3 Core 2 | . . . . . . 2 Reactor . | . . . . . . . Propulsion 17 | 2 1 . . 2 9 3 Treads . | . . . . . . . Leg 6 | 2 1 . . 2 . 1 Wheel 6 | . . . . . 4 2 Hover 5 | . . . . . 5 . Flight . | . . . . . . . Utility 11 | 2 . . . . 4 5 Device 5 | 1 . . . . 2 2 Storage 2 | 1 . . . . . 1 Processor 4 | . . . . . 2 2 Hackware . | . . . . . . . Protection . | . . . . . . . Artifact . | . . . . . . . Weapon 13 | 3 1 3 . . 3 3 Energy Gun 2 | 2 . . . . . . Energy Cannon . | . . . . . . . Ballistic Gun 8 | 1 1 1 . . 2 3 Ballistic Cannon . | . . . . . . . Launcher 2 | . . 1 . . 1 . Special Weapon . | . . . . . . . Impact Weapon . | . . . . . . . Slashing Weapon 1 | . . 1 . . . . Piercing Weapon . | . . . . . . . Special Melee Weapon . | . . . . . . . Unidentified Prototypes 2 | . . . . . 1 1 Parts Lost 20 | . . . . 2 7 11 Power 5 | . . . . 1 . 4 Propulsion 12 | . . . . 1 5 6 Utility 1 | . . . . . 1 . Weapon 2 | . . . . . 1 1 Highest Loss Streak 6 | . . . . 2 6 6 To Critical Strikes . | . . . . . . . Average Slot Usage (%) 94 | . 100 99 100 99 90 91 Engine 12 | . 14 14 14 14 9 12 Leg 13 | . 28 28 28 27 6 2 Wheel 7 | . . . . . 21 7 Hover 5 | . . . . . 2 11 Device 12 | . 14 14 14 14 9 13 Storage 10 | . 14 14 14 14 9 7 Processor 9 | . . . . . 15 16 Ballistic Gun 12 | . 23 21 14 14 7 9 Slashing Weapon 6 | . . 5 14 14 9 4 Naked Turns . | . . . . . . . Heaviest Build 39 | 12 14 16 16 16 17 39 Greatest Support 58 | 20 20 20 20 20 58 38 Greatest Overweight (x) 3 | 1 . . . 1 3 3 Average Overweight (x) . | . . . . . . . Largest Inventory Capacity 10 | 8 8 8 8 8 8 10 Average Capacity 8 | 7 8 8 8 8 8 9 Most Carried 10 | 5 8 8 8 8 8 10 Average Carried 7 | 3 7 7 8 7 7 8 Final Capacity 10 | 8 8 8 8 8 8 10 Final Carried 9 | 5 8 8 8 8 8 9 Class Distribution -------------------- 69% | Mutant 17% | Assassin 9% | Scout 3% | Skirmisher Dominant Class ---------------- Mutant | -10/Materials Mutant | -10/Mines Mutant | -10/Exiles Mutant | -9/Mines Mutant | -8/Materials Assassin | -7/Factory Resources | -11 -10 -10 -10 -9 -8 -7 ----------- Run | Yrd Mat Min Exi Min Mat Fac Matter Collected 823 | 100 172 139 60 52 139 161 Remotely . | . . . . . . . Salvage Created 1110 | 62 240 30 . 146 320 312 Parts 74 | 6 19 6 . 8 19 16 Haulers Intercepted 1 | . 1 . . . . . Recyclers Shooed 1 | 1 . . . . . . Parts Field Recycled . | . . . . . . . Retrieved Matter . | . . . . . . . Parts Self-Destructed . | . . . . . . . Prevented . | . . . . . . . Kills | -11 -10 -10 -10 -9 -8 -7 ------- Run | Yrd Mat Min Exi Min Mat Fac Combat Hostiles Destroyed 23 | . 6 2 . 3 7 5 Melee 6 | . . 1 . . 3 2 Guns 15 | . 6 1 . 3 2 3 AOE 2 | . . . . . 2 . Classes Destroyed 7 | 1 4 . . . 2 . Builder 1 | . . . . . 1 . Tunneler 3 | 3 . . . . . . Hauler 1 | . 1 . . . . . Watcher 4 | . 1 . . . 1 2 Swarmer 7 | . 3 2 . . 2 . Grunt 13 | . 3 . . 3 3 4 Sentry 3 | . . . . . 2 1 Best Kill Streak 4 | 2 3 2 . 3 4 3 Combat Bots Only 4 | . 3 2 . 3 4 2 Max Kills in Single Turn 1 | 1 1 1 . 1 1 1 Gunslinging . | . . . . . . . Exploded 1 | . . . . . 1 . Melee 1 | . . 1 . . 1 1 Uniques/NPCs Destroyed . | . . . . . . . Combat | -11 -10 -10 -10 -9 -8 -7 -------- Run | Yrd Mat Min Exi Min Mat Fac Hostile Shots Fired 312 | . 29 11 . 16 92 164 Missed 99 | . 5 4 . 5 32 53 Damage Taken 2593 | . 245 52 . 133 715 1448 Core 557 | . 18 7 . 10 227 295 Absorbed by Shields . | . . . . . . . Core Remaining (%) 81 | 100 . . . 86 58 . Volleys Fired 80 | 10 19 4 . 8 15 24 Largest 2 | 2 2 2 . 1 1 2 Hottest 80 | 80 60 53 . 25 30 56 Shots Fired 129 | 20 38 5 . 8 15 43 Gun 124 | 20 38 4 . 8 11 43 Cannon . | . . . . . . . Launcher 5 | . . 1 . . 4 . Special . | . . . . . . . Kinetic 103 | 5 32 4 . 8 11 43 Thermal 16 | 10 6 . . . . . Explosive 5 | . . 1 . . 4 . Electromagnetic 5 | 5 . . . . . . Robot Hit Streak 12 | 5 7 3 . 5 5 12 Robot Miss Streak 4 | 4 2 1 . 2 3 2 Penetration Max 1 | . . . . . . 1 Secondary Targets 4 | . 2 . . . . 2 Max Gunslinging Chain 1 | . 1 . . . . 1 Shots Hit Robots 109 | 11 26 4 . 6 14 48 Core Hits 54 | 4 14 2 . 4 13 17 Critical Kills 2 | . 1 . . . . 1 Critical Parts Destroyed 1 | . . . . . . 1 Critical Strikes 8 | . 1 1 . . . 6 Destroy 3 | . 1 . . . . 2 Sever 5 | . . 1 . . . 4 Melee Attacks 31 | . . 3 . . 10 18 Impact . | . . . . . . . Slashing 31 | . . 3 . . 10 18 Piercing . | . . . . . . . Sneak Attacks 1 | . . . . . . 1 Combat Hostiles 1 | . . . . . . 1 Follow-up Attacks . | . . . . . . . Damage Inflicted 2441 | 155 281 99 . 119 498 1289 Guns 1470 | 155 281 36 . 119 91 788 Cannons . | . . . . . . . Explosions 249 | . . . . . 249 . Melee 722 | . . 63 . . 158 501 Ramming . | . . . . . . . Kinetic 1316 | 54 228 36 . 119 91 788 Thermal 99 | 46 53 . . . . . Explosive 249 | . . . . . 249 . Electromagnetic 55 | 55 . . . . . . Impact . | . . . . . . . Slashing 722 | . . 63 . . 158 501 Piercing . | . . . . . . . Highest Corruption 6 | . . . . . . 6 Average Corruption 4 | . . . . . . 4 Corruption Purged . | . . . . . . . Corruption Blocked . | . . . . . . . Effects 6 | . . . . . . 6 Message Errors 1 | . . . . . . 1 Matter Fused 2 | . . . . . . 2 Heat Flow Errors 1 | . . . . . . 1 Weapon Failures 2 | . . . . . . 2 Overload Shots . | . . . . . . . Overflow Damage 30 | . . . . . . 30 Projectiles . | . . . . . . . Explosions . | . . . . . . . Melee 30 | . . . . . . 30 Knockbacks . | . . . . . . . Impact . | . . . . . . . Kinetic . | . . . . . . . Secondary . | . . . . . . . Self-Inflicted Damage . | . . . . . . . Shots . | . . . . . . . Rammed . | . . . . . . . Targets Rammed . | . . . . . . . Kicked . | . . . . . . . Crushed . | . . . . . . . Highest Temperature 196 | 54 12 6 . 15 8 196 Average Temperature 44 | 28 8 6 . 10 4 83 Received Heat Transfer 924 | . 90 . . 75 243 516 Siege Activations . | . . . . . . . Robots Corrupted . | . . . . . . . Combat Hostiles . | . . . . . . . Parts Fried . | . . . . . . . Impact Corruptions . | . . . . . . . Robots Melted . | . . . . . . . Combat Hostiles . | . . . . . . . Parts Melted . | . . . . . . . Heat Transferred 225 | 100 125 . . . . . Parts Sabotaged . | . . . . . . . Parts Stolen . | . . . . . . . Parts Stripped . | . . . . . . . Power Chain Reactions . | . . . . . . . Alert | -11 -10 -10 -10 -9 -8 -7 ------- Run | Yrd Mat Min Exi Min Mat Fac Peak Influence 281 | 15 183 138 . 50 281 127 Initial 70 | . 9 70 . . 19 23 Average 66 | 5 102 78 . 36 113 44 Maximum Alert Level 1 | . . . . . 1 . Low Security (%) 95 | 100 100 100 . 100 76 100 Level 1 4 | . . . . . 24 . Level 2 . | . . . . . . . Level 3 . | . . . . . . . Level 4 . | . . . . . . . Level 5 . | . . . . . . . High Security . | . . . . . . . Max Security . | . . . . . . . Squads Dispatched 9 | . . 1 . . 1 7 Investigation 7 | . . 1 . . 1 5 Extermination 1 | . . . . . . 1 Reinforcement 1 | . . . . . . 1 Assault . | . . . . . . . Garrison . | . . . . . . . Intercept . | . . . . . . . Searches Triggered . | . . . . . . . Construction Impeded . | . . . . . . . Haulers Reinforced . | . . . . . . . Active Scanning Responses . | . . . . . . . Cargo Convoy Interrupts . | . . . . . . . Stealth | -11 -10 -10 -10 -9 -8 -7 --------- Run | Yrd Mat Min Exi Min Mat Fac Distress Signals 2 | . . . . . 1 1 Communications Jammed . | . . . . . . . Distress Signals . | . . . . . . . Times Spotted 54 | . 8 3 . 5 18 20 Peak Tracking Total 9 | . 2 3 . 3 7 9 Tactical Retreats 5 | . . 1 . . 2 2 Traps | -11 -10 -10 -10 -9 -8 -7 ------- Run | Yrd Mat Min Exi Min Mat Fac Traps Triggered 1 | . . . . . . 1 Indirectly . | . . . . . . . Trap Hack Attempts . | . . . . . . . Triggered . | . . . . . . . Disarmed . | . . . . . . . Reprogrammed . | . . . . . . . Reused . | . . . . . . . Traps Extracted . | . . . . . . . Installed . | . . . . . . . Triggered . | . . . . . . . Machines | -11 -10 -10 -10 -9 -8 -7 ---------- Run | Yrd Mat Min Exi Min Mat Fac Machines Disabled . | . . . . . . . Max in Single Turn . | . . . . . . . Machines Repaired . | . . . . . . . Machines Dismantled . | . . . . . . . Machines Sabotaged . | . . . . . . . Overloaded Fab Kills . | . . . . . . . Hacking | -11 -10 -10 -10 -9 -8 -7 --------- Run | Yrd Mat Min Exi Min Mat Fac Machines Accessed 17 | . 2 . 1 . 3 11 Terminals 10 | . 2 . . . 2 6 Fabricators 2 | . . . . . . 2 Repair Stations . | . . . . . . . Recycling Units 1 | . . . . . . 1 Scanalyzers 2 | . . . . . 1 1 Garrison Access 1 | . . . . . . 1 Total Hacks 48 | . 7 . 1 . 13 27 Successful 26 | . 3 . 1 . 7 15 Failed 22 | . 4 . . . 6 12 Catastrophic 5 | . 2 . . . . 3 Database Lockouts . | . . . . . . . Manual 22 | . 3 . . . 6 13 Terminals 30 | . 7 . . . 9 14 Fabricators 3 | . . . . . . 3 Repair Stations . | . . . . . . . Recycling Units 2 | . . . . . . 2 Scanalyzers 9 | . . . . . 4 5 Garrison Access 3 | . . . . . . 3 Terminal Hacks 8 | . 1 . 1 . 3 3 Record 1 | . . . 1 . . . Open DSF 1 | . . . . . . 1 Level Access Points 1 | . . . . . . 1 Terminal Index 1 | . . . . . . 1 Locate Traps 1 | . . . . . 1 . Registered Components 1 | . . . . . 1 . Zone Layout 2 | . 1 . . . 1 . Fabricator Hacks 2 | . . . . . . 2 Network Status 1 | . . . . . . 1 Build 1 | . . . . . . 1 Repair Station Hacks . | . . . . . . . Recycling Unit Hacks 1 | . . . . . . 1 Retrieve Components 1 | . . . . . . 1 Scanalyzer 7 | . . . . . 2 5 Insert Component 4 | . . . . . 1 3 Analyze 3 | . . . . . 1 2 Garrison Access Hacks . | . . . . . . . Unauthorized Hacks 8 | . 2 . . . 2 4 Terminals 7 | . 2 . . . 2 3 Track 1 | . 1 . . . . . Assimilate 1 | . . . . . . 1 Botnet 3 | . 1 . . . 1 1 Operators 1 | . . . . . 1 . Sabotage 1 | . . . . . . 1 Fabricators . | . . . . . . . Repair Stations . | . . . . . . . Recycling Units 1 | . . . . . . 1 Mask 1 | . . . . . . 1 Scanalyzers . | . . . . . . . Garrison Access . | . . . . . . . Data Cores Recovered . | . . . . . . . Used . | . . . . . . . Hacking Detections 11 | . 2 . . . 2 7 Full Trace Events 5 | . 1 . . . 1 3 Feedback Events . | . . . . . . . Feedback Blocked . | . . . . . . . Robot Schematics Acquired . | . . . . . . . Robots Built 1 | . . . . . . 1 Authchips . | . . . . . . . Time 116 | . . . . . . 116 Total Robot Build Rating 3 | . . . . . . 3 Part Schematics Acquired 2 | . . . . . . 2 Parts Built . | . . . . . . . Authchips . | . . . . . . . Time . | . . . . . . . Total Part Build Rating . | . . . . . . . Parts Repaired . | . . . . . . . Time . | . . . . . . . Parts Recycled . | . . . . . . . Recycled Matter . | . . . . . . . Retrieved Matter . | . . . . . . . Retrieved Components 1 | . . . . . . 1 Parts Scanalyzed 3 | . . . . . 1 2 Part Schematics Acquired 2 | . . . . . . 2 Parts Damaged . | . . . . . . . Bothacking | -11 -10 -10 -10 -9 -8 -7 ------------ Run | Yrd Mat Min Exi Min Mat Fac Used RIF Installer . | . . . . . . . Robots Hacked . | . . . . . . . Non-combat . | . . . . . . . Combat . | . . . . . . . Robot Hacks Applied . | . . . . . . . Relay Couplers Released . | . . . . . . . Fabnet Peak Effective % . | . . . . . . . Robots Rewired . | . . . . . . . Allies Hacked . | . . . . . . . Hacks Repelled . | . . . . . . . Allies | -11 -10 -10 -10 -9 -8 -7 -------- Run | Yrd Mat Min Exi Min Mat Fac Total Allies 2 | . . . . . . 2 Largest Group 2 | . . . . . . 2 Highest-Rated Group 52 | . . . . . . 52 Highest-Rated Ally 26 | . . . . . . 26 Total Orders 4 | . . . . . . 4 STAY 1 | . . . . . . 1 ROAM 2 | . . . . . . 2 FOLLOW 1 | . . . . . . 1 Ally Attacks . | . . . . . . . Total Damage . | . . . . . . . Kills . | . . . . . . . Allies Corrupted . | . . . . . . . Allies Melted . | . . . . . . . Intel | -11 -10 -10 -10 -9 -8 -7 ------- Run | Yrd Mat Min Exi Min Mat Fac Robot Analysis Total . | . . . . . . . Derelict Logs Recovered . | . . . . . . . Drone Launches . | . . . . . . . Drone Recoveries . | . . . . . . . Exploration | -11 -10 -10 -10 -9 -8 -7 ------------- Run | Yrd Mat Min Exi Min Mat Fac Turns Passed 2408 | 122 252 264 254 157 425 934 Spaces Moved 1905 | 65 137 198 212 96 334 863 Core 8 | 5 . . . . 3 . Treads . | . . . . . . . Legs 749 | 60 137 198 212 96 46 . Wheels 806 | . . . . . 267 539 Hover 342 | . . . . . 18 324 Flight . | . . . . . . . Fastest Speed 48 | 50 120 120 120 120 48 48 Average Speed 101 | 116 120 120 120 120 98 88 Slowest Speed 250 | 190 120 120 120 190 200 250 Overloaded Moves . | . . . . . . . Propulsion Burnouts . | . . . . . . . Robots Hopped . | . . . . . . . Cave-ins Triggered . | . . . . . . . Exploration Rate (%) 33 | 4 36 40 59 29 38 25 Regions Visited 6 Branch Regions 3 Pre-discovered Areas 2 | . . . 1 1 . . Known Exits Taken 1 | . . . . . 1 . Unknown Exits Taken 5 | 1 1 1 1 1 . . Scrap Searched 2 | . . 1 . 1 . . Spaces Dug 1 | . . . . . 1 . Terrain Destroyed 13 | . . 3 . . 10 . Melee 1 | . . . . . 1 . Projectile . | . . . . . . . AOE 12 | . . 3 . . 9 . Terrain Rammed . | . . . . . . . Walls Destroyed . | . . . . . . . Machines Disabled . | . . . . . . . Actions | -11 -10 -10 -10 -9 -8 -7 --------- Run | Yrd Mat Min Exi Min Mat Fac Total 2196 | 87 188 218 211 130 401 961 Wait 90 | . 25 1 . 22 14 28 Move 1899 | 64 136 197 211 95 333 863 Hop . | . . . . . . . Pick Up 23 | 5 2 3 . 1 5 7 Fast Attach 26 | 7 1 2 . 1 10 5 Attach 11 | . . . . 1 3 7 Detach 2 | . . . . . 2 . Swap 14 | 1 3 2 . 1 3 4 Drop 20 | . 2 6 . 1 6 5 Fire 80 | 10 19 4 . 8 15 24 Melee 31 | . . 3 . . 10 18 Ram . | . . . . . . . Kick . | . . . . . . . Crush . | . . . . . . . Escape Stasis . | . . . . . . . Rewire . | . . . . . . . Trap . | . . . . . . . Miscellaneous . | . . . . . . . Route ------- -11/Scrapyard -10/Materials -10/Mines -10/Exiles -9/Mines (discovered 2 exits: *Mat x2) -8/Materials -7/Factory (discovered 4 exits: Fac x4) History --------- Turn | Location | Event 30 | -11/Scrapyard | Discovered new exit (range 15) 123 | -11/Scrapyard | Entered Materials 308 | -10/Materials | Build established: Mutant 326 | -10/Materials | Discovered new exit (range 11) 375 | -10/Materials | Entered Mines 376 | -10/Mines | Assembled infested the area 388 | -10/Mines | Met a Derelict bent on vengeance 397 | -10/Mines | Found a hidden stash of uninstalled traps 471 | -10/Mines | Met 8R-AWN 481 | -10/Mines | Received a Rocket Launcher from a helpful Derelict 526 | -10/Mines | Met a Derelict shopkeep closing up shop 634 | -10/Mines | Discovered new exit (range 5) 639 | -10/Mines | Entered Exiles 667 | -10/Exiles | Welcomed by 8R-AWN 689 | -10/Exiles | Met EX-HEX 723 | -10/Exiles | Met EX-BIN 815 | -10/Exiles | Met EX-DEC 821 | -10/Exiles | Learned location of Zion (-7) 883 | -10/Exiles | Discovered new exit (range 10) 893 | -10/Exiles | Entered Mines 894 | -9/Mines | Learned location of Storage (-7) 957 | -9/Mines | Discovered new exit (range 4) 987 | -9/Mines | Discovered new exit (range 8) 1050 | -9/Mines | Entered Materials 1050 | -8/Materials | Evolved 4 slots: Propulsion x2, Utility x2 1390 | -8/Materials | Discovered new exit (range 19) 1474 | -8/Materials | Identified exit to Factory 1475 | -8/Materials | Entered Factory 1475 | -7/Factory | Evolved 2 slots: Power x1, Utility x1 1486 | -7/Factory | Lost 6 parts (4n1u1w) 1738 | -7/Factory | Lost 3 parts (1p2n) 1779 | -7/Factory | Fabricated O-24 Administrator (x1) 1973 | -7/Factory | Build established: Assassin 2219 | -7/Factory | Identified exit to Factory 2409 | -7/Factory | Self-destructed Last Messages --------------- 02372_ K-01 Serf collects debris. 02372_ Slug penetrates P-60 Hacker. 02375_ Slug penetrates Wall. 02376_ K-01 Serf collects debris. 02378_ Slug penetrates P-60 Hacker. 02381_ Destroyed Shock Rifle. 02384_ System corrupted: Heat flow error (+205). 02387_ Slug penetrates G-47 Trooper. 02387_ G-47 Trooper suffers critical hit (Destroy). 02387_ Destroyed Aluminum Leg. 02389_ Imp. Deuterium Engine destroyed. 02394_ System corrupted: Prc. Assault Rifle jammed. 02399_ System corrupted: Matter fused (-5). 02400_ System corrupted: Gauss Rifle jammed. 02402_ Critical hit (Burn: +37). 02404_ Arm. Huge Wheel destroyed. 02406_ Slug penetrates Wall. 02407_ Prc. Assault Rifle destroyed. Map ----- +----------------------------------------------------+ | ?????????????????????????????# """""" #?# #???? | | ?????????????????????????????# """""" #?# #???? | | ?????????????????????????????# !#?# #???? | | ?????????????????????????????#######+###?# #???? | | ??????????????????????????????# ### ###?? | | ??????????????????????????????# """# !#?? | | ??????????????????????????????# """# #?? | | ??????????????????????????????# """# #?? | | ??????????????????????????????# + #?? | | ??????????????????????????????# """# ! #?? | | ??????????????????????????????# """# #?? | | ??????????????????????????????# """# #?? | | ??????????????????????????????# ## ##?? | | ??????????????????????????????#####/##+## #??? | | ??????????????????????????????????# ## ?? | | ????????????################??????# ## ? | | ????????????################??????# ## """ "" | | ????????????## [ ##??????# ## """ Y" | | ????????????## ##??????# ## """ "" | | ????????????## """" """" #########/# ## "??? ? | | ????????????## """" """" # """ # #? ??? ? | | ????????????????"""" """" # "T* # "?????? | | ?????????????????""" """" # =%= # ??????? | | ????????????## ?"""" """" # !% # ??????? | | ????????????## """" """" g !! = # "?????? | | ????????????## """" """"@# !! # ????? | | ????????????## # ! + ???? | | ????????????## # # ??? | | ????????????## gg########### ??? | | ????????????############g########## ????? | | ????????????######### ??????? | | ??????????????????### ? ##?????? | | ??????????????????## ?? #??????? | | ??????????????????##T w ????#??????? | | ??????????????????### ???????????? | | ???????????? ######## ????????? | | ???????????? ######## ###############????????? | | ???????????? # # ##????????? | | ???????????? # + ##????????? | | ???????????? + # ##????????? | | ???????????? # # """ """ ##????????? | | ???????????? # # """ """ ##????????? | | ???????????? ####+######### """ """ ##????????? | | ???????????? # ##! ##????????? | | ?????????????????????????## """ """ ##????????? | | ?????????????????????????## """ """ [##????????? | | ?????????????????????????## """ """ ##????????? | | ?????????????????????????## ##????????? | | ?????????????????????????## ##????????? | | ?????????????????????????########+#######????????? | +----------------------------------------------------+ Best States ------------- Heat Dissipation 34 Energy Generation 25 Energy Capacity 465 Matter Stores 300 Matter Capacity 300 Sight Range 16 Robot Scan Range 15 Terrain Scan Range 16 Terrain Scan Density 310 Evasion (%) 55 Item Schematics ----------------- Transmission Jammer | -7/Factory | Scanalyzed Lgt. Nuclear Core | -7/Factory | Scanalyzed Robot Schematics ------------------ None Fabricated ------------ O-24 Administrator | x1 | -7/Factory | Preloaded Alien Tech Used ----------------- None Achievements -------------- None Challenges ------------ None Game ------ Seed TimingPowerAutogun Manual? 0 Play Time 00:25:03 Cumulative 42.2 hours Start 2024.04.18 @ 16:55:51 End 2024.04.18 @ 17:18:24 Sessions 1 Manual Loads 0 Difficulty Rogue Special Mode None Game No. 113 Rogue 111 Adventurer 2 Explorer 0 Win Type - Total 0 Types 0/0/0/0/0/0/0/0/0 Lore% 34 Gallery% 48 Achievement% 34 Wizard Run 0 Options --------- Layout 2 ASCII 0 Keyboard 0 Movement Arrows Keybinds 0 Fullscreen 2 Font 24/Smallcaps Map View 50x44 Zoom Use 0% Tactical HUD 1 Map Filters NONE Filters NONE Steam 1 RUN: 9ad52387-99c9-42d7-bac6-ac872f919b05